[Event "29th Bosnjaci Open 2025"]
[Site "Bosnjaci"]
[Date "2025.01.06"]
[Round "6.18"]
[White "Goric, Esad"]
[Black "Topalic, Fran"]
[Result "1/2-1/2"]
[ECO "A22"]
[WhiteElo "2182"]
[BlackElo "1968"]
[Annotator "RC"]
[PlyCount "157"]
[EventDate "2025.01.04"]
[EventType "swiss"]
[EventCountry "CRO"]
[SourceTitle "playchess.com"]
[Source "ChessBase"]
[SourceQuality "1"]
[TimeControl "5400+30"]

1. c4 {[%emt 0:00:02]} e5 {[%emt 0:00:07]} 2. g3 {[%emt 0:00:03]} Nf6 {[%emt 0:00:20]} 3. Bg2 {[%emt 0:00:07]} Bc5 {[%emt 0:04:40]} 4. Nc3 {[%emt 0:00:21]} O-O {[%emt 0:00:46]} 5. d3 {[%emt 0:00:12]} h6 {[%emt 0:02:43]} 6. Nf3 {[%emt 0:00:06]} d6 {[%emt 0:00:51]} 7. O-O {[%emt 0:00:27]} c6 {[%emt 0:01:28]} 8. Na4 {[%emt 0:00:27]} Bb4 {[%emt 0:00:32]} 9. a3 {[%emt 0:04:24]} Ba5 {[%emt 0:00:07]} 10. c5 {[%emt 0:00:34]} Bc7 {[%emt 0:06:35]} 11. cxd6 {[%emt 0:00:20]} Bxd6 {[%emt 0:00:17]} 12. Nd2 {[%emt 0:00:34]} Nbd7 {[%emt 0:00:46]} 13. Nc3 {[%emt 0:00:58]} Re8 {[%emt 0:00:57]} 14. b4 {[%emt 0:00:10]} Nf8 {[%emt 0:04:05]} 15. Bb2 {[%emt 0:00:15]} a6 {[%emt 0:01:16]} 16. Qc2 {[%emt 0:02:51]} Bf5 {[%emt 0:03:35]} 17. Nce4 {[%emt 0:01:15]} Nxe4 {[%emt 0:00:18]} 18. dxe4 {[%emt 0:00:34]} Bh7 {[%emt 0:10:32]} 19. Nc4 {[%emt 0:00:43]} Bc7 {[%emt 0:00:50]} 20. Ne3 {[%emt 0:02:22]} Qe7 {[%emt 0:06:39]} 21. Nc4 {[%emt 0:01:26]} Rad8 {[%emt 0:01:39]} 22. Rfd1 {[%emt 0:00:41]} f6 {[%emt 0:02:12]} 23. Bh3 {[%emt 0:02:07]} Rxd1+ {[%emt 0:00:47]} 24. Rxd1 {[%emt 0:00:05]} Rd8 {[%emt 0:00:12]} 25. Rxd8 {[%emt 0:00:08]} Qxd8 {[%emt 0:00:04]} 26. Ne3 {[%emt 0:00:18]} Kh8 {[%emt 0:01:09]} 27. Qd3 {[%emt 0:01:26]} Qe8 {[%emt 0:03:52]} 28. Nf5 {[%emt 0:00:26]} Ne6 {[%emt 0:01:06]} 29. Bc1 {[%emt 0:07:03]} Nd4 {[%emt 0:04:26]} 30. Nxd4 {[%emt 0:01:18]} exd4 {[%emt 0:00:07]} 31. f3 {[%emt 0:00:34]} Bb6 {[%emt 0:01:10]} 32. e3 {[%emt 0:08:56]} dxe3 {[%emt 0:05:07]} 33. Bxe3 {[%emt 0:00:04]} Bxe3+ {[%emt 0:00:34]} 34. Qxe3 {[%emt 0:00:02]} Qd8 {[%emt 0:00:18]} 35. Kf2 {[%emt 0:07:02]} a5 {[%emt 0:08:21]} 36. Bf1 {[%emt 0:01:35]} axb4 {[%emt 0:00:07]} 37. axb4 {[%emt 0:00:02]} Bg8 {[%emt 0:02:18]} 38. Be2 {[%emt 0:00:30]} b6 {[%emt 0:00:30]} 39. Qc3 {[%emt 0:03:33]} Qd6 {[%emt 0:01:01]} 40. Ke3 {[%emt 0:00:16]} c5 {[%emt 0:01:14]} 41. bxc5 {[%emt 0:00:08]} bxc5 {[%emt 0:00:05]} 42. f4 {[%emt 0:01:39]} c4 {[%emt 0:00:39]} 43. Qa5 {[%emt 0:01:01]} Qb8 {[%emt 0:01:10]} 44. Qc3 {[%emt 0:02:40]} Qb6+ {[%emt 0:00:49]} 45. Kd2 {[%emt 0:00:06]} Qc5 {[%emt 0:04:02]} 46. Qe3 {[%emt 0:01:15]} Qd6+ {[%emt 0:00:16]} 47. Kc2 {[%emt 0:00:52]} Qc6 {[%emt 0:01:46]} 48. Kd2 {[%emt 0:01:17]} Qa8 {[%emt 0:01:48]} 49. Qd4 {[%emt 0:02:36]} Qa2+ {[%emt 0:00:19]} 50. Kd1 {[%emt 0:01:18]} Qa5 {[%emt 0:06:30]} 51. Kc2 {[%emt 0:04:13]} Qa4+ {[%emt 0:02:22]} 52. Kc1 {[%emt 0:01:54]} Qb4 {[%emt 0:00:44]} 53. Bd1 {[%emt 0:04:45]} Qa3+ {[%emt 0:01:23]} 54. Kd2 {[%emt 0:00:18]} Qa5+ {[%emt 0:01:17]} 55. Qc3 {[%emt 0:00:14]} Qd8+ {[%emt 0:00:12]} 56. Kc1 {[%emt 0:02:18]} Qe8 {[%emt 0:00:53]} 57. Bc2 {[%emt 0:00:16]} Qh5 {[%emt 0:00:25]} 58. h4 {[%emt 0:00:39]} Qc5 {[%emt 0:00:12]} 59. Kb2 {[%emt 0:01:27]} Qb6+ {[%emt 0:03:14]} 60. Kc1 {[%emt 0:00:29]} Bf7 {[%emt 0:00:54]} 61. e5 {[%emt 0:00:29]} fxe5 {[%emt 0:00:19]} 62. fxe5 {[%emt 0:00:37]} Qc5 {[%emt 0:01:14]} 63. Kb2 {[%emt 0:00:04]} Be6 {[%emt 0:00:28]} 64. Kc1 {[%emt 0:01:43]} Kg8 {[%emt 0:01:44]} 65. Kb2 {[%emt 0:00:23]} Qb6+ {[%emt 0:01:17]} 66. Ka3 {[%emt 0:00:16]} Qc5+ {[%emt 0:01:06]} 67. Kb2 {[%emt 0:00:09]} Bd5 {[%emt 0:01:12]} 68. Ka2 {[%emt 0:00:30]} Kf7 {[%emt 0:00:51]} 69. g4 {[%emt 0:01:26]} Ke8 {[%emt 0:02:47]} 70. g5 {[%emt 0:03:45]} hxg5 {[%emt 0:00:16]} 71. hxg5 {[%emt 0:00:02]} Qa7+ {[%emt 0:01:04]} 72. Kb2 {[%emt 0:00:20]} Qb6+ {[%emt 0:00:35]} 73. Ka3 {[%emt 0:00:06]} Qa7+ {[%emt 0:00:36]} 74. Kb2 {[%emt 0:00:28]} Qb6+ {[%emt 0:00:13]} 75. Ka3 {[%emt 0:00:07]} Qa7+ {[%emt 0:00:02]} 76. Ba4+ Bc6 {[%emt 0:00:04]} 77. Kb2 {[%emt 0:00:17]} Qb6+ 78. Ka2 {[%emt 0:00:13]} Qa7 {[%emt 0:00:05]} 79. Qa3 {[%emt 0:00:04]} 1/2-1/2

[Event "29th Bosnjaci Open 2025"]
[Site "Bosnjaci"]
[Date "2025.01.06"]
[Round "6.19"]
[White "Mandalinic, David"]
[Black "Colev, Ivor"]
[Result "1/2-1/2"]
[ECO "E62"]
[WhiteElo "1982"]
[BlackElo "2169"]
[Annotator "RC"]
[PlyCount "131"]
[EventDate "2025.01.04"]
[EventType "swiss"]
[EventCountry "CRO"]
[SourceTitle "playchess.com"]
[Source "ChessBase"]
[SourceQuality "1"]
[TimeControl "5400+30"]

1. d4 {[%emt 0:04:20]} Nf6 {[%emt 0:00:03]} 2. c4 {[%emt 0:00:11]} g6 {[%emt 0:00:05]} 3. g3 {[%emt 0:00:21]} Bg7 {[%emt 0:00:03]} 4. Bg2 {[%emt 0:00:09]} d6 {[%emt 0:00:07]} 5. Nc3 {[%emt 0:00:07]} O-O {[%emt 0:00:13]} 6. Nf3 {[%emt 0:00:08]} Nc6 {[%emt 0:00:09]} 7. O-O {[%emt 0:00:22]} Bg4 {[%emt 0:00:03]} 8. d5 {[%emt 0:02:09]} Na5 {[%emt 0:00:40]} 9. Qd3 {[%emt 0:03:46]} c5 {[%emt 0:00:40]} 10. h3 {[%emt 0:06:53]} Bxf3 {[%emt 0:04:12]} 11. exf3 {[%emt 0:01:39]} a6 {[%emt 0:00:11]} 12. Bg5 {[%emt 0:08:28]} Rb8 {[%emt 0:02:31]} 13. Bxf6 {[%emt 0:10:50]} Bxf6 {[%emt 0:00:26]} 14. Rab1 {[%emt 0:00:25]} b5 {[%emt 0:03:40]} 15. b3 {[%emt 0:05:59]} Qd7 {[%emt 0:13:35]} 16. h4 {[%emt 0:08:18]} Rb7 {[%emt 0:09:40]} 17. Ne4 {[%emt 0:05:32]} Bd4 {[%emt 0:08:06]} 18. cxb5 {[%emt 0:09:33]} axb5 {[%emt 0:01:51]} 19. b4 {[%emt 0:00:36]} Nc4 {[%emt 0:00:13]} 20. a4 {[%emt 0:07:26]} Ra8 {[%emt 0:16:46]} 21. bxc5 {[%emt 0:03:11]} dxc5 {[%emt 0:00:20]} 22. axb5 {[%emt 0:00:09]} Na3 {[%emt 0:03:08]} 23. Ra1 {[%emt 0:11:36]} Bxa1 {[%emt 0:13:06]} 24. Rxa1 {[%emt 0:00:03]} c4 {[%emt 0:00:22]} 25. Qe3 {[%emt 0:02:53]} Qxb5 {[%emt 0:08:31]} 26. Rxa3 {[%emt 0:00:45]} Rxa3 {[%emt 0:00:14]} 27. Qxa3 {[%emt 0:00:05]} Qxd5 {[%emt 0:05:01]} 28. Qa8+ {[%emt 0:04:27]} Kg7 {[%emt 0:00:04]} 29. Qa1+ {[%emt 0:00:05]} e5 {[%emt 0:00:04]} 30. f4 {[%emt 0:00:28]} Qd4 {[%emt 0:00:48]} 31. Qa8 {[%emt 0:01:16]} Rb1+ {[%emt 0:01:34]} 32. Kh2 {[%emt 0:00:07]} exf4 {[%emt 0:00:50]} 33. h5 {[%emt 0:02:09]} fxg3+ {[%emt 0:00:23]} 34. fxg3 {[%emt 0:00:20]} gxh5 {[%emt 0:05:39]} 35. Qc8 {[%emt 0:01:03]} Qe5 {[%emt 0:02:08]} 36. Qxc4 {[%emt 0:01:11]} h4 {[%emt 0:00:04]} 37. Qc8 {[%emt 0:01:07]} hxg3+ {[%emt 0:02:21]} 38. Nxg3 {[%emt 0:00:02]} h5 {[%emt 0:00:34]} 39. Qf5 {[%emt 0:00:55]} Qxf5 {[%emt 0:00:10]} 40. Nxf5+ {[%emt 0:00:02]} Kf6 {[%emt 0:00:11]} 41. Ng3 {[%emt 0:00:22]} Kg5 {[%emt 0:00:16]} 42. Ne4+ {[%emt 0:00:17]} Kh4 {[%emt 0:01:20]} 43. Nd6 {[%emt 0:00:37]} f6 {[%emt 0:00:24]} 44. Nf5+ {[%emt 0:00:26]} Kg5 {[%emt 0:00:54]} 45. Ng3 {[%emt 0:00:18]} f5 {[%emt 0:00:16]} 46. Kh3 {[%emt 0:01:09]} Rb3 {[%emt 0:00:23]} 47. Kh2 {[%emt 0:00:18]} Rb2 {[%emt 0:00:24]} 48. Kh3 {[%emt 0:00:40]} h4 {[%emt 0:00:34]} 49. Nf1 {[%emt 0:00:12]} Re2 {[%emt 0:01:06]} 50. Nh2 {[%emt 0:00:16]} Re3+ {[%emt 0:00:23]} 51. Bf3 {[%emt 0:00:35]} Kf4 {[%emt 0:00:06]} 52. Kg2 {[%emt 0:00:04]} h3+ {[%emt 0:00:19]} 53. Kf2 {[%emt 0:00:17]} Rb3 {[%emt 0:00:36]} 54. Be2 {[%emt 0:00:27]} Rb2 {[%emt 0:00:54]} 55. Nf3 {[%emt 0:00:12]} Ra2 {[%emt 0:00:28]} 56. Nh2 {[%emt 0:00:36]} Rxe2+ {[%emt 0:00:23]} 57. Kxe2 {[%emt 0:00:03]} Kg3 {[%emt 0:00:05]} 58. Nf1+ {[%emt 0:02:12]} Kg2 {[%emt 0:00:22]} 59. Ke1 {[%emt 0:00:56]} f4 {[%emt 0:00:27]} 60. Ke2 {[%emt 0:00:23]} f3+ {[%emt 0:00:54]} 61. Ke1 {[%emt 0:00:12]} Kg1 {[%emt 0:00:53]} 62. Nh2 {[%emt 0:00:58]} f2+ {[%emt 0:00:41]} 63. Ke2 {[%emt 0:00:12]} Kxh2 {[%emt 0:00:32]} 64. Kxf2 {[%emt 0:00:02]} Kh1 {[%emt 0:00:08]} 65. Kf1 {[%emt 0:00:03]} h2 {[%emt 0:00:06]} 66. Kf2 {[%emt 0:00:02]} 1/2-1/2

[Event "29th Bosnjaci Open 2025"]
[Site "Bosnjaci"]
[Date "2025.01.07"]
[Round "7.1"]
[White "Zaja, Ivan"]
[Black "Pap, Misa"]
[Result "1/2-1/2"]
[ECO "E45"]
[WhiteElo "2418"]
[BlackElo "2436"]
[Annotator "TA"]
[PlyCount "43"]
[EventDate "2025.01.04"]
[EventType "swiss"]
[EventCountry "CRO"]
[SourceTitle "playchess.com"]
[Source "ChessBase"]
[SourceQuality "1"]
[TimeControl "5400+30"]

{[%evp 18,43,7,20,25,23,8,6,14,0,47,35,60,47,38,34,40,42,50,45,45,-9,-8,-13,-14,-24,-28,-31]} 1. d4 {[%emt 0:00:02]} Nf6 {[%emt 0:00:07]} 2. c4 {[%emt 0:00:12]} e6 {[%emt 0:00:06]} 3. Nc3 {[%emt 0:00:39]} Bb4 {[%emt 0:00:06]} 4. e3 {[%emt 0:00:33]} b6 {[%emt 0:00:06]} 5. Nge2 {[%emt 0:00:36]} Ba6 {[%emt 0:00:55]} 6. Ng3 {[%emt 0:03:15]} Bxc3+ {[%emt 0:00:41]} 7. bxc3 {[%emt 0:00:02]} d5 {[%emt 0:00:13]} 8. Ba3 {[%emt 0:05:41]} Bxc4 {[%emt 0:09:05]} 9. Bxc4 {[%emt 0:00:25]} dxc4 {[%emt 0:00:03]} 10. Qa4+ {[%emt 0:05:55]} Qd7 {[%emt 0:00:44]} 11. Qxc4 {[%emt 0:00:06]} Qc6 {[%emt 0:00:33]} 12. Qxc6+ $1 {[%emt 0:01:03]} Nxc6 {[%emt 0:00:05]} 13. c4 {[%emt 0:00:25]} O-O-O {[%emt 0:22:36]} (13... a6 $11 {is more appropriate.}) 14. Ke2 {[%emt 0:04:14]} Ne8 {[%emt 0:05:43]} 15. Ne4 {[%emt 0:07:48]} h6 {[%emt 0:05:18]} 16. Rhc1 {[%emt 0:09:12]} f5 {[%emt 0:04:53]} 17. Nd2 {[%emt 0:00:32]} Nf6 {[%emt 0:02:14]} 18. Rab1 {[%emt 0:03:11]} Rhe8 {[%emt 0:03:03]} 19. c5 {[%emt 0:15:46] [#]} ({White should play} 19. h3 $14) 19... b5 $1 $11 {[%emt 0:02:29]} 20. Rxb5 {[%emt 0:03:33] [#]} Rxd4 $1 {[%emt 0:01:13]} 21. Bb2 {[%emt 0:00:16]} (21. exd4 Nxd4+) 21... Ra4 {[%emt 0:01:39]} 22. Bxf6 {[%emt 0:00:16]} 1/2-1/2

[Event "29th Bosnjaci Open 2025"]
[Site "Bosnjaci"]
[Date "2025.01.07"]
[Round "7.2"]
[White "Maravic, Ivan"]
[Black "Saric, Ante"]
[Result "0-1"]
[ECO "E20"]
[WhiteElo "2074"]
[BlackElo "2483"]
[Annotator "TA"]
[PlyCount "86"]
[EventDate "2025.01.04"]
[EventType "swiss"]
[EventCountry "CRO"]
[SourceTitle "playchess.com"]
[Source "ChessBase"]
[SourceQuality "1"]
[TimeControl "5400+30"]

{[%evp 9,86,-10,-4,-15,27,2,3,0,0,0,0,0,0,4,4,0,0,-17,16,15,14,24,13,-14,-1,-4,0,-44,-37,-52,-50,-43,-51,-47,-44,-37,-28,-57,-34,-55,-54,-69,-78,-126,-116,-120,0,-123,-128,-112,-126,-122,-130,-289,-296,-236,-237,-351,-366,-860,-823,-1506,-1633,-1618,-1437,-1675,-1125,-1914,-1775,-2764,-2181,-2964,-2960,-6598,-6595,-6402,-6335,-2538,-1981]} 1. d4 {[%emt 0:00:09][%cal Bd2d4,Bd4d5][%mdl 32]} Nf6 {[%emt 0:00:07]} 2. c4 {[%emt 0:00:10]} e6 {[%emt 0:00:06]} 3. Nc3 {[%emt 0:00:10]} Bb4 {[%emt 0:00:06]} 4. f3 {[%emt 0:00:17]} c5 {[%emt 0:00:07]} 5. d5 {[%emt 0:01:30] [#]} b5 $1 {[%emt 0:00:23]} 6. e4 {[%emt 0:01:04]} d6 {[%emt 0:00:30]} 7. Bd2 {[%emt 0:06:44]} Bxc3 {[%emt 0:01:01]} 8. Bxc3 {[%emt 0:07:14] The position is equal.} b4 {[%emt 0:00:08]} 9. Bd2 {[%emt 0:00:30]} exd5 {[%emt 0:00:06]} 10. cxd5 {[%emt 0:00:55]} O-O {[%emt 0:00:26][%cal Of6e4] [#] aiming for ...Nxe4!} 11. Bg5 {[%emt 0:05:31]} h6 {[%emt 0:04:18]} 12. Bh4 {[%emt 0:01:57]} a5 {[%emt 0:09:19]} 13. a4 {[%emt 0:09:36]} Qe7 {[%emt 0:13:27]} 14. Bb5 {[%emt 0:10:35]} Nbd7 {[%emt 0:17:25]} 15. Ne2 {[%emt 0:02:46]} Ne5 {[%emt 0:00:30]} 16. b3 {[%emt 0:09:22]} g5 {[%emt 0:05:06]} 17. Bg3 {[%emt 0:04:06]} Nh5 {[%emt 0:02:01]} 18. O-O {[%emt 0:02:47]} Nxg3 {[%emt 0:08:59]} 19. Nxg3 {[%emt 0:00:14]} f5 $1 {[%emt 0:00:09]} 20. exf5 {[%emt 0:03:45]} Bxf5 {[%emt 0:00:16]} 21. Qd2 {[%emt 0:01:08]} Bg6 {[%emt 0:01:25]} 22. Rae1 {[%emt 0:00:46]} Rf7 {[%emt 0:05:17]} 23. Re2 {[%emt 0:14:01]} Qf6 {[%emt 0:06:07]} 24. h3 {[%emt 0:02:48]} Qf4 {[%emt 0:04:42]} 25. Qxf4 {[%emt 0:02:08]} Rxf4 {[%emt 0:01:21]} 26. Rd1 {[%emt 0:04:39]} (26. Re3 $142) 26... Rc8 {[%emt 0:05:43]} 27. Ba6 {[%emt 0:06:37]} Ra8 {[%emt 0:05:52]} 28. Bb5 {[%emt 0:00:12]} Rd4 {[%emt 0:00:47]} 29. Rxd4 {[%emt 0:01:32]} cxd4 {[%emt 0:00:02]} 30. Ne4 {[%emt 0:00:56]} Bxe4 {[%emt 0:01:13]} 31. fxe4 $17 {[%emt 0:01:08][%mdl 4096] Endgame. KRB-KRN. This move loses the game for White.} (31. Rxe4 $17 {was the only chance.} Rc8 (31... d3 32. Bc6 $11) 32. Bc6 (32. Rxd4 $2 Rc3 $19)) 31... Rc8 {[%emt 0:00:25]} 32. Bc6 {[%emt 0:00:23]} Rf8 {[%emt 0:03:29]} 33. Rd2 {[%emt 0:00:28]} (33. Re1 $142) 33... Rf3 $19 {[%emt 0:00:34]} 34. gxf3 {[%emt 0:00:45]} (34. Rb2 Rc3 35. Rb1) 34... Nxf3+ {[%emt 0:00:02] Black is clearly winning.} 35. Kg2 {[%emt 0:00:22]} Nxd2 {[%emt 0:00:02] KB-KN} 36. e5 {[%emt 0:00:18]} Nxb3 {[%emt 0:02:08]} 37. exd6 {[%emt 0:00:02]} Kf7 {[%emt 0:00:29] White must now prevent ...Nc5.} 38. Kf2 {[%emt 0:00:59]} Nc5 {[%emt 0:00:31]} 39. Ke2 {[%emt 0:00:48]} h5 {[%emt 0:01:00]} 40. d7 {[%emt 0:00:27]} Ke7 {[%emt 0:00:04]} 41. d6+ {[%emt 0:00:09]} Kd8 $1 {[%emt 0:00:01]} (41... Kxd6 $2 {is the wrong capture.} 42. d8=Q+ (42. d8=R+ Kxc6 43. Rxd4 Nxa4 $17) 42... Kxc6 43. Qxa5 $18) 42. Bf3 {[%emt 0:00:43]} Kxd7 {[%emt 0:01:04] Strongly threatening ...b3.} 43. Bxh5 {[%emt 0:00:06]} Kxd6 {[%emt 0:00:55] Weighted Error Value: White=0.83/Black=0.08 (flawless) .  Mistake:       	White=4     	---        Inaccurate:     	White=4     	Black=2      OK:         	White=12    	Black=11     Best:        	---       	Black=1      Strong:       	---       	Black=1} 0-1

[Event "29th Bosnjaci Open 2025"]
[Site "Bosnjaci"]
[Date "2025.01.07"]
[Round "7.3"]
[White "Hadzovic, Amir"]
[Black "Gal, Andrej"]
[Result "1/2-1/2"]
[ECO "B10"]
[WhiteElo "2316"]
[BlackElo "2256"]
[Annotator "TA"]
[PlyCount "81"]
[EventDate "2025.01.04"]
[EventType "swiss"]
[EventCountry "CRO"]
[SourceTitle "playchess.com"]
[Source "ChessBase"]
[SourceQuality "1"]
[TimeControl "5400+30"]

{[%evp 9,81,7,0,0,0,10,0,-5,5,-4,-19,-29,-8,-26,-22,-26,0,-49,78,-31,-39,-37,29,18,31,18,39,24,19,13,15,17,21,0,0,0,0,0,0,-6,-24,-25,-23,-105,-70,-127,-10,-22,29,34,33,0,0,0,43,0,2,-39,-16,-37,-21,-59,-59,-104,-102,-99,0,-100,0,-101,0,-100,-100,-88]} 1. e4 {[%emt 0:00:02]} c6 {[%emt 0:00:46]} 2. d3 {[%emt 0:00:07]} d5 {[%emt 0:00:08]} 3. Nd2 {[%emt 0:00:07]} e5 {[%emt 0:01:32]} 4. Ngf3 {[%emt 0:00:05]} Bd6 {[%emt 0:00:24]} 5. d4 {[%emt 0:00:06]} exd4 {[%emt 0:11:09]} 6. Bd3 {[%emt 0:00:11]} Ne7 {[%emt 0:06:49]} 7. O-O {[%emt 0:00:23]} O-O {[%emt 0:07:47]} 8. Re1 {[%emt 0:02:35]} Ng6 {[%emt 0:03:31]} 9. e5 {[%emt 0:07:16]} Bc7 {[%emt 0:01:36]} 10. Nb3 {[%emt 0:01:44][%cal Bd2b3,Bb3d4,Bd4f3][%mdl 32]} Bg4 {[%emt 0:07:29]} 11. Bxg6 {[%emt 0:09:30]} hxg6 {[%emt 0:08:12]} 12. Nbxd4 {[%emt 0:01:38]} Re8 {[%emt 0:01:48][%cal Oe8e5]} 13. Qd3 {[%emt 0:05:57]} (13. h3 $11 Bxf3 14. Nxf3) 13... c5 {[%emt 0:09:34]} (13... Nd7 $15 {stays ahead.} 14. Bf4 Nc5) 14. h3 {[%emt 0:04:54] White is more active.} (14. e6 $1 $16 {[%cal Re6f7]} cxd4 15. exf7+ Kxf7 16. Bg5) 14... Bxf3 {[%emt 0:02:53]} 15. Nxf3 {[%emt 0:01:45][%cal Oe5e6]} Qd7 {[%emt 0:01:33]} (15... c4 $15 16. Qd1 Nc6) 16. Bf4 $11 {[%emt 0:03:07][%cal Oe5e6]} Na6 {[%emt 0:06:13][%cal Bb8a6,Ba6b4,Bb4c6,Bc6d8,Bd8e6][%mdl 32]} 17. Bg3 {[%emt 0:15:47]} Nb4 {[%emt 0:04:37]} 18. Qd2 {[%emt 0:00:38]} Nc6 {[%emt 0:06:14]} 19. Rad1 {[%emt 0:02:04]} Ba5 {[%emt 0:01:20]} 20. c3 {[%emt 0:00:54]} d4 $1 {[%emt 0:00:07]} 21. Qg5 {[%emt 0:03:29]} Nd8 {[%emt 0:02:37]} 22. b4 {[%emt 0:01:38]} Ne6 {[%emt 0:01:29]} 23. Qg4 $1 {[%emt 0:07:01]} cxb4 {[%emt 0:01:18]} 24. Rxd4 {[%emt 0:00:15]} Qb5 {[%emt 0:04:12]} 25. c4 {[%emt 0:01:51]} Qa4 {[%emt 0:01:21][%cal Oa8d8]} 26. Rdd1 {[%emt 0:03:28]} (26. Rd6 $1 $11) 26... Rac8 {[%emt 0:01:13][%cal Oa5b6]} (26... Qxa2 27. Ra1 Qc2 28. Rxa5 $16) 27. Rc1 {[%emt 0:00:42]} ({White should try} 27. Ng5 $15) 27... Qc6 {[%emt 0:00:42]} (27... Qxa2 $6 28. Ra1 Qc2 29. Rec1 $11 (29. Rxa5 $2 Rxc4 $19)) (27... Qa3 $17 {[%cal Ob4b3] White must now prevent ...b3!.} 28. Ra1 Qd3) 28. Red1 {[%emt 0:00:46]} Red8 {[%emt 0:01:08]} (28... Bc7 $142) 29. Rd6 {[%emt 0:00:18]} Qe8 $1 {[%emt 0:00:49]} 30. Rcd1 {[%emt 0:02:00]} Bc7 $36 {[%emt 0:00:27][%mdl 2048] Black has some pressure.} 31. R6d5 {[%emt 0:00:18] And now Bh4 would win.} Qa4 {[%emt 0:01:23]} 32. R1d2 {[%emt 0:01:02]} Qa3 {[%emt 0:01:26]} 33. Bh4 {[%emt 0:01:18]} Re8 {[%emt 0:00:02]} 34. Rd7 {[%emt 0:01:45]} Qc1+ {[%emt 0:02:02]} 35. Kh2 {[%emt 0:03:27]} Bb8 {[%emt 0:01:00]} 36. Rd1 {[%emt 0:05:49]} Qc2 {[%emt 0:00:41]} 37. R1d2 {[%emt 0:02:28]} Qc1 {[%emt 0:00:42]} 38. Rd1 $1 {[%emt 0:01:40]} Qc2 {[%emt 0:00:04]} 39. R1d2 $1 {[%emt 0:00:53] [#]} Qc1 {[%emt 0:00:14]} (39... Qxc4 40. Rxb7 Qf1 41. Rdd7 $14 (41. Rxb4 Rc1 $15) (41. Qxb4 $2 {too greedy.} g5 $19)) ({Black should try} 39... Qc3 $1 $17 40. R2d3 Qxc4 41. Qxc4 Rxc4) 40. Rxb7 {[%emt 0:00:10]} (40. Rd1 $1 $11 {keeps the balance.} Qc2 (40... Qxc4 41. Qxc4 Rxc4 42. Rxb7 $11)) 40... Rxc4 $17 {[%emt 0:00:07]} 41. Qg3 {[%emt 0:00:01]} 1/2-1/2

[Event "29th Bosnjaci Open 2025"]
[Site "Bosnjaci"]
[Date "2025.01.07"]
[Round "7.4"]
[White "Culum, Sanjin"]
[Black "Jakovic, Roko"]
[Result "1-0"]
[ECO "B90"]
[WhiteElo "2446"]
[BlackElo "2273"]
[Annotator "TA"]
[PlyCount "73"]
[EventDate "2025.01.04"]
[EventType "swiss"]
[EventCountry "CRO"]
[SourceTitle "playchess.com"]
[Source "ChessBase"]
[SourceQuality "1"]
[TimeControl "5400+30"]

{[%evp 13,73,21,22,7,11,8,18,15,0,0,0,0,6,1,41,27,75,55,59,56,84,75,110,107,185,183,178,175,168,186,183,167,180,174,214,207,308,304,306,294,298,271,353,330,379,372,380,372,441,431,776,762,754,754,823,815,1015,994,1883,1901,1909,1861]} 1. e4 {[%emt 0:00:06]} c5 {[%emt 0:00:21]} 2. Nf3 {[%emt 0:00:07]} d6 {[%emt 0:00:13]} 3. d4 {[%emt 0:00:05]} cxd4 {[%emt 0:00:07]} 4. Nxd4 {[%emt 0:00:04]} Nf6 {[%emt 0:00:11]} 5. Nc3 {[%emt 0:00:05]} a6 {[%emt 0:00:24]} 6. h3 {[%emt 0:00:13]} e5 {[%emt 0:00:53]} 7. Nde2 {[%emt 0:00:15]} b5 {[%emt 0:02:54][%cal Bb7b5,Bb5b4][%mdl 32]} 8. g4 {[%emt 0:05:34]} b4 {[%emt 0:05:12]} 9. Nd5 {[%emt 0:00:29]} Nxd5 {[%emt 0:00:41]} 10. Qxd5 {[%emt 0:00:41]} Ra7 {[%emt 0:00:25]} 11. Be3 {[%emt 0:04:26]} Be6 {[%emt 0:00:09]} 12. Qd3 {[%emt 0:06:01]} Rb7 {[%emt 0:01:48]} 13. Bg2 {[%emt 0:03:11]} Qc7 {[%emt 0:11:32]} 14. Ng3 {[%emt 0:01:56]} Qc4 {[%emt 0:09:31]} (14... Be7 $11) 15. O-O {[%emt 0:03:49]} Qxd3 {[%emt 0:04:15]} 16. cxd3 {[%emt 0:00:11][%cal Bc2d3,Bd3d4,Bd4d5][%mdl 32]} Be7 {[%emt 0:03:35]} 17. Nf5 {[%emt 0:04:09]} O-O {[%emt 0:03:00][%cal Be8g8,Bg8f8,Bf8e7][%mdl 32]} 18. d4 {[%emt 0:01:32] White is more active.} Rc8 {[%emt 0:08:34]} (18... Bf6 $16) 19. Nxe7+ $18 {[%emt 0:05:22]} Rxe7 {[%emt 0:00:13]} 20. d5 {[%emt 0:00:01]} Bd7 {[%emt 0:00:23]} 21. Rfc1 {[%emt 0:00:05]} Ree8 {[%emt 0:04:50]} 22. Bb6 {[%emt 0:03:13][%cal Be3b6,Bb6c7,Bc7a5,Ba5b4][%mdl 32]} Kf8 {[%emt 0:03:27]} 23. b3 {[%emt 0:04:32]} Rc3 {[%emt 0:05:21]} 24. Bc7 {[%emt 0:08:51]} Rxc1+ {[%emt 0:03:25]} (24... Ke7 $142 25. Rxc3 bxc3) 25. Rxc1 {[%emt 0:00:07]} Ke7 {[%emt 0:00:04]} 26. Ba5 {[%emt 0:00:10]} Bb5 {[%emt 0:10:19]} 27. Bxb4 {[%emt 0:00:55]} a5 {[%emt 0:00:52]} 28. Bxa5 {[%emt 0:01:12]} Na6 {[%emt 0:00:29]} 29. b4 {[%emt 0:01:16][%cal Bb3b4,Bb4c5,Bc5c6][%mdl 32]} Ra8 {[%emt 0:01:04]} 30. Bf1 {[%emt 0:00:47]} Bxf1 {[%emt 0:00:35]} 31. Kxf1 {[%emt 0:00:05]} Nc5 {[%emt 0:00:13]} (31... g6 $142 32. Rc6 Nc5 33. bxc5 Rxa5 34. Rc7+ (34. cxd6+ Kd7 $18) (34. Rxd6 Rxc5 35. Ra6 g5 $18) 34... Ke8) 32. bxc5 {[%emt 0:01:06]} Rxa5 {[%emt 0:00:06] KR-KR. White is two pawns up.} 33. c6 {[%emt 0:00:11] Hoping for c7.} Kd8 {[%emt 0:00:14]} 34. Rb1 {[%emt 0:00:05]} Kc8 {[%emt 0:00:43] Against Rb8+} 35. Rb7 {[%emt 0:00:46]} Rxa2 {[%emt 0:00:09]} 36. Rxf7 {[%emt 0:00:08]} Ra3 {[%emt 0:00:25]} 37. Kg2 {[%emt 0:00:26]} 1-0